[Event "1000GM Winter GM Norm-2 2024"]
[Site "Sunnyvale/"]
[Date "2024.01.04"]
[Round "3.8"]
[White "Sheng, Joshua"]
[Black "Liu, Eric"]
[Result "1-0"]
[ECO "B55"]
[WhiteElo "2461"]
[BlackElo "2332"]
[Annotator "TA"]
[PlyCount "95"]
[EventDate "2023.12.14"]
[EventType "schev"]
[EventCountry "USA"]
[SourceTitle "playchess.com"]
[Source "ChessBase"]
[SourceQuality "1"]
[TimeControl "5400+30"]

{[%evp 9,95,0,0,0,0,5,0,0,20,19,29,24,33,20,19,-10,0,-2,0,-12,20,-11,51,49,91,0,31,12,41,35,60,60,57,57,62,36,54,41,56,47,67,71,63,56,50,54,74,72,95,94,106,49,240,47,52,29,62,14,56,68,58,54,83,89,166,147,151,157,535,279,243,166,147,149,635,643,1537,1536,1471,1033,29984,29985,29995,29996,29996,29997,29998,29999]} 1. e4 {[%emt 0:00:01]} c5 {[%emt 0:00:07]} 2. Nf3 {[%emt 0:00:02]} d6 {[%emt 0:00:06]} 3. d4 {[%emt 0:00:01]} cxd4 {[%emt 0:00:06]} 4. Nxd4 {[%emt 0:00:03]} Nf6 {[%emt 0:00:07]} 5. Bd3 {[%emt 0:00:03]} Nc6 {[%emt 0:01:46]} 6. Be3 {[%emt 0:00:04] B55: Sicilian: 2...d6 3 d4 cxd4 4 Nxd4 Nf6 5 f3.} Ng4 {[%emt 0:13:03]} 7. Nxc6 {[%emt 0:00:05]} bxc6 {[%emt 0:00:19]} 8. Bd2 {[%emt 0:00:40] The position is equal.} e5 {[%emt 0:09:05]} 9. O-O {[%emt 0:09:50]} Be7 {[%emt 0:00:09]} 10. c4 {[%emt 0:01:50]} O-O {[%emt 0:01:59] [#]} 11. h3 $146 {[%emt 0:04:16]} ({Predecessor:} 11. Nc3 a5 12. h3 Nf6 13. Be3 Nd7 14. Bc2 Nc5 15. Qd2 Ne6 16. Ba4 Bb7 17. Rad1 {½-½ Abdusattorov,N (2688)-Muradli,M (2523) Chess.com Rapid Wk20 Swiss 2022 (7)}) 11... Nf6 {[%emt 0:00:09]} 12. Bc3 {[%emt 0:00:16]} Be6 {[%emt 0:07:52]} 13. Nd2 {[%emt 0:00:56][%cal Oc4c5]} Nd7 {[%emt 0:07:37]} 14. Re1 {[%emt 0:02:22]} g6 {[%emt 0:07:26]} 15. Bc2 {[%emt 0:07:33]} f5 {[%emt 0:05:50]} (15... Qc7 $11) 16. exf5 $14 {[%emt 0:04:43]} Bxf5 {[%emt 0:05:19]} 17. Nf1 {[%emt 0:09:48]} (17. Bxf5 $16 gxf5 18. b4) 17... a5 {[%emt 0:03:46]} (17... Be6 $5 {[%cal Re6c4]}) 18. Ne3 {[%emt 0:05:11]} Bxc2 {[%emt 0:00:29]} 19. Qxc2 {[%emt 0:00:04]} Rf7 {[%emt 0:11:35]} 20. Rad1 {[%emt 0:01:53][%cal Oc4c5]} Qb6 {[%emt 0:03:04]} 21. Ng4 {[%emt 0:11:36] aiming for Nh6+.} Bf8 {[%emt 0:05:57] Dodges Nh6+} 22. Re2 {[%emt 0:02:32]} (22. Bd2 $5 {[%cal Rd2h6]}) 22... Nc5 {[%emt 0:01:07]} 23. Red2 {[%emt 0:08:14]} Qc7 {[%emt 0:02:07]} 24. a3 {[%emt 0:06:19]} a4 {[%emt 0:04:10]} 25. Bb4 {[%emt 0:00:03] Black must now prevent Bxc5.} Nb7 {[%emt 0:00:04]} 26. g3 {[%emt 0:00:58]} Rf5 {[%emt 0:03:02]} 27. Qe4 {[%emt 0:03:20]} Rc8 {[%emt 0:00:51]} 28. Kg2 {[%emt 0:03:24] White is much more active.} Kh8 {[%emt 0:01:39]} 29. h4 {[%emt 0:01:41]} Kg8 {[%emt 0:01:55] [#]} 30. h5 {[%emt 0:00:52]} Qg7 $2 {[%emt 0:00:17] [#]} (30... Qf7 $1 $14) 31. hxg6 $2 {[%emt 0:01:10]} ({White has to play} 31. f4 $1 $18 {[%cal Rf4e5]}) 31... Qxg6 {[%emt 0:00:21] And now ...h5 would win.} 32. f3 {[%emt 0:02:16]} Rg5 {[%emt 0:01:55]} 33. Re2 {[%emt 0:04:17]} (33. Rh1 $14) 33... Qg7 {[%emt 0:00:48]} (33... h5 {simplifies} 34. Qxg6+ Rxg6 35. Nf2 h4) 34. Rh1 {[%emt 0:02:53]} h5 {[%emt 0:01:58]} 35. Bd2 $36 {[%emt 0:00:26][%cal Bb4d2,Bd2g5,Bg5f6,Bf6c3][%mdl 2080] White has the initiative.} Nc5 {[%emt 0:00:13]} (35... hxg4 $2 36. Bxg5 gxf3+ 37. Kxf3 $18) 36. Qc2 {[%emt 0:00:01]} (36. Qe3 $2 Be7 37. Qc3 hxg4 $19) 36... e4 {[%emt 0:01:20]} (36... hxg4 $16 37. Bxg5 gxf3+ 38. Kxf3 e4+ 39. Rxe4 Nxe4 40. Qxe4 Qf7+ 41. Kg2 Re8) 37. Bxg5 $18 {[%emt 0:00:38]} hxg4 {[%emt 0:00:07]} (37... exf3+ $2 38. Kf2 fxe2 39. Nf6+ Kf7 40. Qf5 $18 (40. Nxh5 $2 Qxg5 41. Qxe2 Re8 $19) (40. Rxh5 $2 Qg6 $19)) 38. f4 {[%emt 0:00:59] Hoping for Qd2.} d5 $2 {[%emt 0:00:04]} (38... Qg6 $16 39. Rh4 (39. Qc3 Bg7 $14) 39... Bg7) 39. cxd5 {[%emt 0:00:03]} cxd5 {[%emt 0:00:04]} 40. Rd2 {[%emt 0:00:56][%cal Be2d2,Bd2d5,Bd5g5,Bg5g7][%mdl 32] Strongly threatening Qd1.} Qd7 {[%emt 0:01:08] [#]} 41. Qd1 {[%emt 0:02:25]} ({Of course not} 41. Qc3 $6 Bg7 42. Qc1 Nb3 $11) 41... Nb3 $2 {[%emt 0:01:14][%mdl 8192] [#]} (41... e3 $16 42. Rxd5 Qe6) 42. Bf6 $1 {[%emt 0:02:18]} Qe6 {[%emt 0:00:41] Threatens to win with ...e3.} (42... Rc1 43. Rh8+) 43. Rxd5 {[%emt 0:00:14][%cal Od5d7] Intending Rd7! and mate.} e3 {[%emt 0:00:24]} 44. Bc3 {[%emt 0:02:46]} Qe4+ {[%emt 0:00:22]} 45. Kg1 {[%emt 0:00:22] White mates.} e2 {[%emt 0:00:25]} 46. Rg5+ {[%emt 0:00:07]} Kf7 {[%emt 0:00:01]} 47. Qd7+ {[%emt 0:00:05]} Be7 {[%emt 0:00:03]} 48. Rg7+ {[%emt 0:00:06] A superb game by Sheng.   Weighted Error Value: White=0.31/Black=0.61} 1-0

[Event "1000GM Winter GM Norm-2 2024"]
[Site "Sunnyvale/"]
[Date "2024.01.04"]
[Round "3.9"]
[White "Nathan, Nitish"]
[Black "Xu, Yi"]
[Result "0-1"]
[ECO "A40"]
[WhiteElo "2190"]
[BlackElo "2511"]
[Annotator "TA"]
[PlyCount "80"]
[EventDate "2023.12.14"]
[EventType "schev"]
[EventCountry "USA"]
[SourceTitle "playchess.com"]
[Source "ChessBase"]
[SourceQuality "1"]
[TimeControl "5400+30"]

{[%evp 9,79,0,6,-2,0,0,15,0,0,-13,0,-22,-12,-19,-16,-35,-34,-60,-48,-50,-39,-66,-66,-82,-83,-125,-86,-92,-83,-79,-80,-80,-81,-106,-106,-129,-120,-110,-91,-111,-112,-129,-123,-169,-158,-166,-162,-149,-168,-184,-161,-177,-163,-211,-213,-243,-253,-252,-247,-321,-313,-299,-302,-365,-144,-29951,-6149,-5714,-5606,-29998,-29999,-29999]} 1. d4 {[%emt 0:00:03]} e6 {[%emt 0:00:17]} 2. Bf4 {[%emt 0:00:03]} c5 {[%emt 0:00:10]} 3. e3 {[%emt 0:02:29]} Qb6 {[%emt 0:00:12]} 4. Nc3 {[%emt 0:12:53]} Nf6 {[%emt 0:00:24]} 5. Rb1 {[%emt 0:05:42]} a6 {[%emt 0:06:23]} 6. Nf3 {[%emt 0:01:58] A40: Unusual replies to 1 d4.} d5 {[%emt 0:00:53]} 7. Be2 {[%emt 0:02:34]} Bd7 {[%emt 0:00:29] [#]} 8. dxc5 $146 {[%emt 0:01:56] The position is equal.} ({Predecessor:} 8. O-O Be7 9. Ne5 O-O 10. dxc5 Qxc5 11. Bf3 Rc8 12. Qd2 Be8 13. Rfc1 Nc6 14. Rd1 {0-1 Nevado Jimenez,S (1703)-Escalante Ramirez,B (2496) Valencia Cuna op 3rd 2022 (1)}) 8... Bxc5 {[%emt 0:03:04]} 9. O-O {[%emt 0:01:01]} O-O {[%emt 0:03:10]} 10. h3 {[%emt 0:01:59]} Be7 {[%emt 0:15:44]} 11. Bd3 {[%emt 0:04:51]} Bc6 {[%emt 0:01:57]} 12. Ne5 {[%emt 0:04:02]} Nbd7 {[%emt 0:01:09]} 13. Nxd7 {[%emt 0:02:52]} Nxd7 {[%emt 0:00:52][%cal Bf6d7,Bd7c5,Bc5d3][%mdl 32]} (13... Bxd7 14. Be5 $11) 14. Bh2 {[%emt 0:01:25]} Nc5 {[%emt 0:05:42]} 15. Qe2 {[%emt 0:03:29]} Rfd8 {[%emt 0:06:44]} 16. Rfd1 {[%emt 0:01:35]} Bf6 {[%emt 0:01:55]} 17. Qg4 {[%emt 0:05:32]} Nxd3 {[%emt 0:10:32]} 18. cxd3 {[%emt 0:04:14]} d4 $1 {[%emt 0:00:59]} 19. Ne4 {[%emt 0:02:07]} Bxe4 {[%emt 0:00:18]} 20. Qxe4 {[%emt 0:00:06]} Rac8 {[%emt 0:00:11][%cal Ba8c8,Bc8c6,Bc6c3][%mdl 32]} 21. Rd2 {[%emt 0:03:46] Dodges Rc2} Qa5 {[%emt 0:08:14][%csl LRa2,LRd2]} 22. Rdd1 {[%emt 0:00:10]} Rc6 {[%emt 0:06:52]} (22... Qxa2 23. Qxb7 dxe3 24. fxe3 $15) 23. a3 {[%emt 0:01:08]} Qb6 {[%emt 0:02:35]} 24. Bg3 {[%emt 0:09:08]} h6 {[%emt 0:01:01]} 25. b4 {[%emt 0:05:32]} Rc3 {[%emt 0:03:17]} 26. a4 {[%emt 0:00:36]} (26. Rbc1 $17) 26... dxe3 $19 {[%emt 0:00:19]} 27. fxe3 {[%emt 0:00:38]} Bg5 {[%emt 0:00:16]} 28. Bf2 {[%emt 0:00:44]} f5 {[%emt 0:01:47] Black is more active.} 29. Qe5 {[%emt 0:03:26]} Rcxd3 {[%emt 0:00:09]} 30. Rxd3 {[%emt 0:01:19]} Rxd3 {[%emt 0:00:03]} 31. a5 {[%emt 0:00:33]} (31. Qc5 {keeps fighting.} Qd8 32. a5) 31... Qc6 {[%emt 0:06:27]} 32. b5 {[%emt 0:00:43]} axb5 {[%emt 0:00:46]} 33. Qxb5 {[%emt 0:00:58] [#]} Qe4 {[%emt 0:09:25]} ({Avoid the trap} 33... Rd1+ $2 34. Kh2 Rxb1 35. Qxb1 $19) 34. Rb4 {[%emt 0:11:10]} Rd1+ {[%emt 0:00:09]} 35. Kh2 {[%emt 0:00:04]} Qc2 {[%emt 0:00:25]} 36. Rb2 {[%emt 0:01:42] [#]} Qc7+ {[%emt 0:00:44]} (36... Qc1 $1 $19 {has better winning chances. ( -> ...f4)} 37. g3 (37. Qxb7 $2 {too greedy.} Rh1+ 38. Kg3 h5 $19) (37. Qe8+ $2 Kh7 $19) 37... Bxe3 38. Qe8+ Kh7 39. Qxe6 Qxb2 40. Qxf5+ g6 41. Qf7+ Qg7 42. Qxg7+ Kxg7 43. Bxe3 Rd5) 37. Bg3 {[%emt 0:03:42][%mdl 8192] This move loses the game for White.} (37. g3 $17) 37... Qc1 {[%emt 0:00:37][%csl Gc1][%cal Rd1h1]} 38. Bf2 {[%emt 0:01:46]} f4 {[%emt 0:00:40]} 39. exf4 {[%emt 0:00:10]} Rh1+ {[%emt 0:00:20]} 40. Kg3 {[%emt 0:00:09]} Qxf4# {[%emt 0:00:19] Weighted Error Value: White=0.53/Black=0.12 (very precise)} 0-1

[Event "1000GM Winter GM Norm-2 2024"]
[Site "Sunnyvale/"]
[Date "2024.01.04"]
[Round "4.1"]
[White "Lou, Yiping"]
[Black "Rajaram, Rohan"]
[Result "1-0"]
[ECO "A25"]
[WhiteElo "2447"]
[BlackElo "2151"]
[Annotator "RC"]
[PlyCount "115"]
[EventDate "2023.12.14"]
[EventType "schev"]
[EventCountry "USA"]
[SourceTitle "playchess.com"]
[Source "ChessBase"]
[SourceQuality "1"]
[TimeControl "5400+30"]

1. c4 {[%emt 0:02:02]} e5 {[%emt 0:00:30]} 2. Nc3 {[%emt 0:00:24]} Nc6 {[%emt 0:00:08]} 3. g3 {[%emt 0:00:11]} g6 {[%emt 0:00:13]} 4. Bg2 {[%emt 0:00:05]} Bg7 {[%emt 0:00:04]} 5. d3 {[%emt 0:00:09]} d6 {[%emt 0:00:23]} 6. e3 {[%emt 0:00:10]} f5 {[%emt 0:00:08]} 7. Nge2 {[%emt 0:00:07]} Nf6 {[%emt 0:00:05]} 8. O-O {[%emt 0:00:04]} O-O {[%emt 0:00:06]} 9. b3 {[%emt 0:02:59]} Rb8 {[%emt 0:02:30]} 10. Bb2 {[%emt 0:03:12]} g5 {[%emt 0:03:27]} 11. f4 {[%emt 0:00:56]} gxf4 {[%emt 0:03:17]} 12. exf4 {[%emt 0:00:39]} Re8 {[%emt 0:02:02]} 13. Qd2 {[%emt 0:14:52]} Be6 {[%emt 0:08:42]} 14. Rae1 {[%emt 0:03:07]} Qd7 {[%emt 0:02:52]} 15. Nd1 {[%emt 0:11:25]} Rbd8 {[%emt 0:15:37]} 16. d4 {[%emt 0:06:11]} exd4 {[%emt 0:04:31]} 17. Nxd4 {[%emt 0:00:23]} Nxd4 {[%emt 0:01:12]} 18. Bxd4 {[%emt 0:00:19]} c5 {[%emt 0:00:50]} 19. Bb2 {[%emt 0:02:45]} Qf7 {[%emt 0:07:07]} 20. Ne3 {[%emt 0:01:53]} Re7 {[%emt 0:02:46]} 21. Re2 {[%emt 0:02:37]} Red7 {[%emt 0:10:07]} 22. Rfe1 {[%emt 0:06:08]} Kh8 {[%emt 0:06:32]} 23. Qc2 {[%emt 0:02:05]} Qh5 {[%emt 0:02:05]} 24. Nf1 {[%emt 0:02:53]} Bf7 {[%emt 0:01:28]} 25. Re7 {[%emt 0:00:48]} Rxe7 {[%emt 0:03:06]} 26. Rxe7 {[%emt 0:00:09]} Re8 {[%emt 0:00:55]} 27. Rxe8+ {[%emt 0:00:31]} Nxe8 {[%emt 0:03:31]} 28. Bxb7 {[%emt 0:00:31]} Qg6 {[%emt 0:00:48]} 29. Ne3 {[%emt 0:01:44]} Be6 {[%emt 0:01:09]} 30. Bd5 {[%emt 0:01:57]} Bxd5 {[%emt 0:01:56]} 31. Nxd5 {[%emt 0:00:41]} Qe6 {[%emt 0:00:44]} 32. Bxg7+ {[%emt 0:00:46]} Nxg7 {[%emt 0:01:37]} 33. Kf2 {[%emt 0:00:48]} Qh6 {[%emt 0:00:24]} 34. Kf1 {[%emt 0:01:56]} Qh3+ {[%emt 0:00:42]} 35. Kg1 {[%emt 0:00:25]} Ne6 {[%emt 0:16:26]} 36. Qe2 {[%emt 0:00:40]} Qh6 {[%emt 0:00:00]} 37. Kg2 {[%emt 0:01:50]} Qg6 {[%emt 0:01:00]} 38. a3 {[%emt 0:02:10]} Kg7 {[%emt 0:00:00]} 39. b4 {[%emt 0:00:22]} cxb4 {[%emt 0:00:00]} 40. axb4 {[%emt 0:00:04]} h5 {[%emt 0:01:30]} 41. Qa2 {[%emt 0:30:02]} Qf7 {[%emt 0:00:30]} 42. Qa6 {[%emt 0:00:30]} h4 {[%emt 0:00:00]} 43. Qxd6 {[%emt 0:00:00]} hxg3 {[%emt 0:00:00]} 44. hxg3 {[%emt 0:00:00]} Qg6 {[%emt 0:00:00]} 45. c5 {[%emt 0:00:00]} Kh7 {[%emt 0:00:00]} 46. c6 {[%emt 0:00:00]} Qf7 {[%emt 0:00:00]} 47. c7 {[%emt 0:00:00]} Nxc7 {[%emt 0:00:00]} 48. Qxc7 {[%emt 0:00:00]} Qxc7 {[%emt 0:00:00]} 49. Nxc7 {[%emt 0:00:00]} Kg7 {[%emt 0:00:00]} 50. Nb5 {[%emt 0:00:00]} a6 {[%emt 0:00:00]} 51. Nc7 {[%emt 0:00:00]} Kf7 {[%emt 0:00:00]} 52. Nxa6 {[%emt 0:00:00]} Ke7 {[%emt 0:00:00]} 53. b5 {[%emt 0:00:00]} Kd7 {[%emt 0:06:00]} 54. g4 fxg4 {[%emt 0:00:00]} 55. f5 {[%emt 0:00:00]} Kd6 {[%emt 0:00:00]} 56. f6 {[%emt 0:00:00]} Ke6 {[%emt 0:01:30]} 57. b6 {[%emt 0:00:00]} Kxf6 {[%emt 0:00:00]} 58. b7 {[%emt 0:00:00]} 1-0

[Event "1000GM Winter GM Norm-2 2024"]
[Site "Sunnyvale/"]
[Date "2024.01.04"]
[Round "4.3"]
[White "Nagy, Gabor"]
[Black "Wang, Isaac"]
[Result "1/2-1/2"]
[ECO "A21"]
[WhiteElo "2450"]
[BlackElo "2316"]
[Annotator "RC"]
[PlyCount "59"]
[EventDate "2023.12.14"]
[EventType "schev"]
[EventCountry "USA"]
[SourceTitle "playchess.com"]
[Source "ChessBase"]
[SourceQuality "1"]
[TimeControl "5400+30"]

1. c4 {[%emt 0:00:04]} e5 {[%emt 0:02:38]} 2. Nc3 {[%emt 0:00:16]} Bb4 {[%emt 0:01:16]} 3. Nd5 {[%emt 0:00:49]} Be7 {[%emt 0:00:37]} 4. Nf3 {[%emt 0:01:01]} c6 {[%emt 0:03:50]} 5. Nxe7 {[%emt 0:06:20]} Qxe7 {[%emt 0:00:10]} 6. d4 {[%emt 0:05:33]} e4 {[%emt 0:01:39]} 7. Nd2 {[%emt 0:01:44]} d6 {[%emt 0:04:02]} 8. Nb1 {[%emt 0:00:41]} Nf6 {[%emt 0:00:35]} 9. Nc3 {[%emt 0:00:28]} Bf5 {[%emt 0:02:42]} 10. h3 {[%emt 0:01:19]} h6 {[%emt 0:04:56]} 11. Bf4 {[%emt 0:01:27]} g5 {[%emt 0:08:41]} 12. Bd2 {[%emt 0:00:25]} Nbd7 {[%emt 0:02:00]} 13. e3 {[%emt 0:00:15]} h5 {[%emt 0:02:41]} 14. Be2 {[%emt 0:00:32]} h4 {[%emt 0:01:57]} 15. Qa4 {[%emt 0:01:11]} Be6 {[%emt 0:07:13]} 16. Qc2 {[%emt 0:00:57]} d5 {[%emt 0:04:44]} 17. cxd5 {[%emt 0:01:29]} cxd5 {[%emt 0:00:47]} 18. Nb5 {[%emt 0:02:55]} O-O {[%emt 0:01:52]} 19. Qb3 {[%emt 0:00:17]} a5 {[%emt 0:01:18]} 20. Rc1 {[%emt 0:02:25]} b6 {[%emt 0:08:31]} 21. Qa3 {[%emt 0:07:48]} Qxa3 {[%emt 0:00:22]} 22. bxa3 {[%emt 0:00:06]} Rfc8 {[%emt 0:01:59]} 23. O-O {[%emt 0:00:22]} Ne8 {[%emt 0:01:45]} 24. a4 {[%emt 0:07:53]} Ndf6 {[%emt 0:02:28]} 25. Rxc8 {[%emt 0:00:22]} Rxc8 {[%emt 0:00:07]} 26. Rc1 {[%emt 0:00:05]} Kf8 {[%emt 0:02:32]} 27. Rxc8 {[%emt 0:08:20]} Bxc8 {[%emt 0:00:06]} 28. Bc1 {[%emt 0:00:06]} Ke7 {[%emt 0:00:42]} 29. Ba3+ {[%emt 0:00:08]} Ke6 {[%emt 0:01:17]} 30. Kf1 {[%emt 0:04:19]} 1/2-1/2

[Event "1000GM Winter GM Norm-2 2024"]
[Site "Sunnyvale/"]
[Date "2024.01.04"]
[Round "4.4"]
[White "Amburgy, Ryan"]
[Black "Miezis, Normunds"]
[Result "1/2-1/2"]
[ECO "E11"]
[WhiteElo "2200"]
[BlackElo "2419"]
[Annotator "RC"]
[PlyCount "46"]
[EventDate "2023.12.14"]
[EventType "schev"]
[EventCountry "USA"]
[SourceTitle "playchess.com"]
[Source "ChessBase"]
[SourceQuality "1"]
[TimeControl "5400+30"]

1. d4 {[%emt 0:00:03]} Nf6 {[%emt 0:00:22]} 2. c4 {[%emt 0:00:06]} e6 {[%emt 0:00:26]} 3. Nf3 {[%emt 0:00:09]} Bb4+ {[%emt 0:00:14]} 4. Nbd2 {[%emt 0:00:07]} O-O {[%emt 0:02:03]} 5. a3 {[%emt 0:00:09]} Be7 {[%emt 0:00:16]} 6. e4 {[%emt 0:00:09]} d6 {[%emt 0:00:14]} 7. Be2 {[%emt 0:00:13]} Nbd7 {[%emt 0:01:00]} 8. Qc2 {[%emt 0:00:12]} e5 {[%emt 0:01:24]} 9. Nb1 {[%emt 0:00:10]} exd4 {[%emt 0:05:27]} 10. Nxd4 {[%emt 0:00:06]} Nc5 {[%emt 0:04:19]} 11. Nc3 {[%emt 0:00:15]} Re8 {[%emt 0:00:09]} 12. f3 {[%emt 0:00:37]} a5 {[%emt 0:00:18]} 13. Be3 {[%emt 0:01:03]} a4 {[%emt 0:07:36]} 14. O-O {[%emt 0:02:17]} Bd7 {[%emt 0:02:45]} 15. Rad1 {[%emt 0:01:26]} Bf8 {[%emt 0:00:41]} 16. Kh1 {[%emt 0:10:22]} g6 {[%emt 0:10:13]} 17. Rf2 {[%emt 0:08:12]} h5 {[%emt 0:11:24]} 18. Bf1 {[%emt 0:02:25]} Bg7 {[%emt 0:00:34]} 19. Ndb5 {[%emt 0:04:19]} b6 {[%emt 0:01:29]} 20. Bg5 {[%emt 0:02:27]} Ne6 {[%emt 0:05:06]} 21. Be3 {[%emt 0:03:30]} Nc5 {[%emt 0:03:55]} 22. Bg5 {[%emt 0:01:22]} Ne6 {[%emt 0:04:17]} 23. Be3 {[%emt 0:00:05]} Nc5 {[%emt 0:00:10]} 1/2-1/2

[Event "1000GM Winter GM Norm-2 2024"]
[Site "Sunnyvale/"]
[Date "2024.01.04"]
[Round "4.5"]
[White "Guo, Andrew"]
[Black "Figueredo Losada, Leonel"]
[Result "1-0"]
[ECO "A62"]
[WhiteElo "2255"]
[BlackElo "2381"]
[Annotator "RC"]
[PlyCount "69"]
[EventDate "2023.12.14"]
[EventType "schev"]
[EventCountry "USA"]
[SourceTitle "playchess.com"]
[Source "ChessBase"]
[SourceQuality "1"]
[TimeControl "5400+30"]

1. d4 {[%emt 1:31:00]} Nf6 {[%emt 0:01:04]} 2. c4 {[%emt 0:00:00]} e6 {[%emt 0:00:04]} 3. Nf3 {[%emt 0:00:00]} c5 {[%emt 0:00:11]} 4. d5 {[%emt 0:00:00]} exd5 {[%emt 0:00:04]} 5. cxd5 {[%emt 0:00:00]} d6 {[%emt 0:00:05]} 6. Nc3 {[%emt 0:00:00]} g6 {[%emt 0:00:12]} 7. g3 {[%emt 0:00:00]} Bg7 {[%emt 0:00:06]} 8. Bg2 {[%emt 0:00:00]} O-O {[%emt 0:00:05]} 9. O-O {[%emt 0:00:00]} Re8 {[%emt 0:00:14]} 10. Bf4 {[%emt 0:00:00]} Bf5 {[%emt 0:00:29]} 11. Nd2 {[%emt 0:00:00]} Nh5 {[%emt 0:01:18]} 12. Be3 {[%emt 0:00:00]} Nd7 {[%emt 0:16:46]} 13. Nc4 {[%emt 0:00:00]} Nb6 {[%emt 0:00:36]} 14. Qb3 {[%emt 0:00:00]} Nxc4 {[%emt 0:06:55]} 15. Qxc4 {[%emt 0:00:00]} a6 {[%emt 0:05:43]} 16. a4 {[%emt 0:00:00]} Qb6 {[%emt 0:08:33]} 17. Qa2 {[%emt 0:00:00]} Nf6 {[%emt 0:09:10]} 18. Bf4 {[%emt 0:00:00]} Ne4 {[%emt 0:00:56]} 19. a5 {[%emt 0:00:00]} Qb4 {[%emt 0:07:17]} 20. Bxe4 {[%emt 0:09:30]} Bxe4 {[%emt 0:00:12]} 21. Bxd6 {[%emt 0:00:00]} Bf5 {[%emt 0:03:09]} 22. Rfe1 {[%emt 0:00:00]} Bh3 {[%emt 0:06:55]} 23. e4 {[%emt 0:00:00]} f5 {[%emt 0:06:25]} 24. e5 {[%emt 0:00:00]} Qg4 {[%emt 0:00:05]} 25. Bxc5 {[%emt 0:00:00]} f4 {[%emt 0:23:04]} 26. d6+ {[%emt 0:00:00]} Kh8 {[%emt 0:00:01]} 27. Qd5 {[%emt 0:00:00]} Rf8 {[%emt 0:00:36]} 28. d7 {[%emt 0:00:00]} fxg3 {[%emt 0:02:58]} 29. hxg3 {[%emt 0:00:00]} Qxd7 {[%emt 0:01:14]} 30. Qxd7 {[%emt 0:00:00]} Bxd7 {[%emt 0:00:03]} 31. Bxf8 {[%emt 0:00:00]} Rxf8 {[%emt 0:00:05]} 32. Rad1 {[%emt 0:00:00]} Bc6 {[%emt 0:00:08]} 33. Nd5 {[%emt 0:00:00]} Rd8 {[%emt 0:00:57]} 34. Ne7 {[%emt 0:00:00]} Rxd1 {[%emt 0:01:18]} 35. Rxd1 {[%emt 0:00:00]} 1-0

[Event "1000GM Winter GM Norm-2 2024"]
[Site "Sunnyvale/"]
[Date "2024.01.04"]
[Round "4.6"]
[White "Shivakumar, Shawnak"]
[Black "Sheng, Joshua"]
[Result "1/2-1/2"]
[ECO "A40"]
[WhiteElo "2307"]
[BlackElo "2461"]
[Annotator "TA"]
[PlyCount "41"]
[EventDate "2023.12.14"]
[EventType "schev"]
[EventCountry "USA"]
[SourceTitle "playchess.com"]
[Source "ChessBase"]
[SourceQuality "1"]
[TimeControl "5400+30"]

{[%evp 13,41,31,43,35,33,35,33,23,0,27,154,129,139,54,71,0,0,0,0,0,0,0,0,0,0,0,-8,-6,0,-47]} 1. d4 {[%emt 0:03:07]} e6 {[%emt 0:00:04]} 2. c4 {[%emt 0:01:35]} b6 {[%emt 0:00:04]} 3. Nc3 {[%emt 0:01:06]} Bb7 {[%emt 0:00:09]} 4. e4 {[%emt 0:00:07]} Bb4 {[%emt 0:00:05]} 5. f3 {[%emt 0:00:04]} f5 {[%emt 0:00:07]} 6. exf5 {[%emt 0:00:09]} Nh6 {[%emt 0:00:03]} 7. fxe6 {[%emt 0:00:09]} Nf5 {[%emt 0:00:03]} 8. Bd3 {[%emt 0:00:06] A40: Unusual replies to 1 d4.} Qh4+ {[%emt 0:22:18]} 9. Kf1 $1 {[%emt 0:00:25]} O-O $1 {[%emt 0:06:59]} 10. a3 {[%emt 0:07:51] White is slightly better.} Bxc3 {[%emt 0:04:23]} 11. bxc3 {[%emt 0:02:44] [#]} Ng3+ $146 {[%emt 0:00:33]} (11... dxe6 $11 {remains equal.} 12. Qe2 Kh8) ({Predecessor:} 11... dxe6 12. Qe2 Qf6 13. Nh3 Nd7 14. Bg5 Qf7 15. Bf4 e5 16. Bxe5 Rae8 17. Re1 Nxe5 18. dxe5 {½-½ Almeraya,E (2140)-Knoeppel,B (1923) SB-2016-0-00454}) 12. hxg3 $16 {[%emt 0:00:09]} Qxh1 {[%emt 0:00:01] [#]} 13. e7 {[%emt 0:05:35]} (13. Qe2 $1 $16) 13... Re8 $14 {[%emt 0:00:20] Black is weak on the dark squares} 14. Qe2 {[%emt 0:01:30] Active counter play!} (14. Bf4 $16) 14... Nc6 $11 {[%emt 0:08:02] The position is equal.} 15. Bg5 {[%emt 0:00:59] Re1 is the strong threat.} h6 {[%emt 0:01:58]} 16. d5 {[%emt 0:01:11]} ({Don't go for} 16. Bh4 $2 g5 17. Qd2 (17. Qe4 Rxe7 18. Qd5+ Kh8 $19) 17... Rxe7 $19) 16... hxg5 {[%emt 0:00:19]} 17. dxc6 {[%emt 0:00:14]} Bxc6 {[%emt 0:00:03][%cal Og5g4]} 18. Bg6 {[%emt 0:00:47] [#] And now Re1 would win. The board is on fire.} Qh6 {[%emt 0:00:09]} 19. Bxe8 {[%emt 0:00:13]} Rxe8 {[%emt 0:00:02]} 20. Re1 {[%emt 0:01:32][%cal Oc4c5]} Qf6 {[%emt 0:00:19]} 21. g4 {[%emt 0:06:00] Weighted Error Value: White=0.28 (precise) /Black=0.14 (very precise)} (21. c5 $11) 1/2-1/2

[Event "1000GM Winter GM Norm-2 2024"]
[Site "Sunnyvale/"]
[Date "2024.01.05"]
[Round "4.7"]
[White "Liu, Eric"]
[Black "Galyas, Miklos"]
[Result "1/2-1/2"]
[ECO "B12"]
[WhiteElo "2332"]
[BlackElo "2423"]
[Annotator "RC"]
[PlyCount "40"]
[EventDate "2023.12.14"]
[EventType "schev"]
[EventCountry "USA"]
[SourceTitle "playchess.com"]
[Source "ChessBase"]
[SourceQuality "1"]
[TimeControl "5400+30"]

1. e4 {[%emt 0:00:01]} c6 {[%emt 0:00:53]} 2. d4 {[%emt 0:00:04]} d5 {[%emt 0:00:09]} 3. e5 {[%emt 0:00:07]} c5 {[%emt 0:00:13]} 4. Nf3 {[%emt 0:00:10]} cxd4 {[%emt 0:00:08]} 5. Qxd4 {[%emt 0:00:00]} Nc6 6. Qf4 {[%emt 1:33:08]} e6 {[%emt 0:00:39]} 7. Bd3 {[%emt 0:00:00]} Nb4 {[%emt 0:00:51]} 8. Nc3 {[%emt 0:00:00]} Nxd3+ {[%emt 0:00:08]} 9. cxd3 {[%emt 0:01:30]} Ne7 {[%emt 0:00:24]} 10. h4 {[%emt 0:00:00]} h5 {[%emt 0:03:11]} 11. Bd2 {[%emt 0:00:00]} Nf5 {[%emt 0:02:59]} 12. Ne2 {[%emt 0:00:00]} Qb6 {[%emt 1:26:55]} 13. Bc3 {[%emt 0:02:00]} Qa6 {[%emt 0:00:30]} 14. Qd2 {[%emt 0:00:00]} Be7 {[%emt 0:00:00]} 15. Ned4 {[%emt 0:00:00]} Nxd4 {[%emt 0:00:00]} 16. Bxd4 {[%emt 0:00:00]} Bd7 {[%emt 0:01:30]} 17. O-O {[%emt 0:02:00]} O-O {[%emt 0:00:00]} 18. a4 {[%emt 0:00:30]} Rac8 {[%emt 0:00:00]} 19. b3 {[%emt 0:00:00]} b6 {[%emt 0:00:00]} 20. Rfc1 {[%emt 0:00:00]} Rxc1+ {[%emt 0:00:00]} 1/2-1/2